Cogmind - Beta 15 @@@ ROGUE MODE // 2025.06.01 @ 15:49:15 Player: Duduxx Result: Destroyed by G-50 Soldier with Heavy Laser Performance ------------- Evolutions (1) 500 Regions Visited (6) 1200 Robots Destroyed (21) 105 Value Destroyed (496) 496 Prototype IDs (25) 500 Alien Tech Used (0) 0 Bonus (300) 300 TOTAL SCORE: 3101 Bonus ------- Aligned with FarCom 300 Cogmind --------- Core Integrity 0/400 Matter 289/300 Energy 1592/1600 System Corruption 12% Temperature Warning (392) Movement Walking (190) Ox1 Location -8/Mines Parts ------- > --- POWER (1) -------- (None) > --- PROPULSION (2) --- Carbon-fiber Leg Carbon-fiber Leg > --- UTILITY (4) ------ High-capacity Storage Unit Superbattery (fused) Improved Targeting Computer > --- WEAPON (2) ------- Advanced Beam Cannon (fused) > --- INVENTORY (20) --- Light Ion Engine Light Nuclear Core Small Storage Unit Experimental Sensor Array Targeting Computer Improved Targeting Computer Mining Laser Peak State ------------ > --- POWER ------------ Light Ion Engine > --- PROPULSION ------- Wheel Wheel > --- UTILITY ---------- High-capacity Storage Unit Superbattery Experimental Sensor Array Improved Targeting Computer > --- WEAPON ----------- Advanced Beam Cannon > --- INVENTORY -------- Light Ion Engine Light Nuclear Core Carbon-fiber Leg Small Storage Unit Light Armor Plating Mining Laser [Rating: 29] Favorites ----------- Power Light Ion Engine Engine Light Ion Engine Propulsion Wheel Treads Light Treads Leg Carbon-fiber Leg Wheel Wheel Utility Improved Targeting Computer Device Experimental Sensor Array Storage High-capacity Storage Unit Processor Improved Targeting Computer Protection Light Armor Plating Weapon EM Pulse Gun Energy Gun EM Pulse Gun Energy Cannon Light EM Pulse Cannon Ballistic Gun Assault Rifle Special Weapon Mining Laser Build | -11 -10 -10 -9 -9 -9 -8 ------- Run | Yrd Mat Min Mat Min Exi Min Slots Evolved 2 | . . . 2 . . . Power . | . . . . . . . Propulsion . | . . . . . . . Utility 2 | . . . 2 . . . Weapon . | . . . . . . . Parts Attached 34 | 7 . . 10 13 1 3 Power 5 | 1 . . 1 3 . . Engine 5 | 1 . . 1 3 . . Core . | . . . . . . . Reactor . | . . . . . . . Propulsion 11 | 2 . . 2 5 . 2 Treads 2 | 2 . . . . . . Leg 2 | . . . . . . 2 Wheel 7 | . . . 2 5 . . Hover . | . . . . . . . Flight . | . . . . . . . Utility 11 | 2 . . 6 2 1 . Device 5 | 1 . . 2 2 . . Storage 3 | 1 . . 1 . 1 . Processor 1 | . . . 1 . . . Hackware . | . . . . . . . Protection 2 | . . . 2 . . . Artifact . | . . . . . . . Weapon 7 | 2 . . 1 3 . 1 Energy Gun 3 | 1 . . 1 1 . . Energy Cannon 2 | . . . . 1 . 1 Ballistic Gun 1 | 1 . . . . . . Ballistic Cannon . | . . . . . . . Launcher . | . . . . . . . Special Weapon 1 | . . . . 1 . . Impact Weapon . | . . . . . . . Slashing Weapon . | . . . . . . . Piercing Weapon . | . . . . . . . Special Melee Weapon . | . . . . . . . Unidentified Prototypes 2 | . . . . 1 . 1 Corrupted Parts 1 | . . . . . . 1 System Corruption 2 | . . . . . . 2 Parts Lost 19 | . . . 1 12 . 6 Power 4 | . . . . 3 . 1 Propulsion 7 | . . . . 5 . 2 Utility 4 | . . . 1 2 . 1 Weapon 4 | . . . . 2 . 2 Highest Loss Streak 9 | . . . 1 9 . 4 To Critical Strikes . | . . . . . . . Average Backups 6 | 2 4 5 7 7 4 8 Power 1 | . 1 1 2 1 1 1 Propulsion 1 | 1 2 2 2 1 . 1 Utility 1 | . . . . 1 1 3 Weapon 2 | . 1 2 3 2 2 1 Tool/Special . | . . . . . . . Unused Backups 5 | . . . 1 . . 4 Power 3 | . . . 1 . . 2 Propulsion . | . . . . . . . Utility 2 | . . . . . . 2 Weapon . | . . . . . . . Tool/Special . | . . . . . . . Average Slot Usage (%) 94 | . 100 100 89 95 100 88 Engine 11 | . 14 14 11 10 11 11 Treads 7 | . 28 28 22 . . . Wheel 14 | . . . . 20 22 20 Device 10 | . 14 14 15 12 11 2 Storage 14 | . 14 14 11 11 16 22 Processor 8 | . . . 2 11 11 11 Protection 6 | . . . 4 7 5 8 Energy Gun 11 | . 14 14 14 14 11 . Energy Cannon 5 | . . . . 5 11 11 Ballistic Gun 3 | . 14 14 7 . . . Peak Build Rating 29 | 9 9 9 13 20 28 29 Average Rating 16 | 6 9 9 10 16 23 23 On Entrance 12 | . 9 9 9 13 19 28 Naked Turns . | . . . . . . . Heaviest Build 57 | 13 13 13 56 57 54 54 Greatest Support 40 | 40 40 40 40 26 20 30 Greatest Overweight (x) 16 | . . . 2 16 2 2 Average Overweight (x) 1 | . . . . 2 2 1 Largest Inventory Capacity 20 | 8 8 8 20 20 20 20 Average Capacity 16 | 7 8 8 9 20 20 20 Most Carried 12 | 4 5 6 9 12 5 9 Average Carried 6 | 2 4 5 7 7 4 8 Final Capacity 20 | 8 8 8 20 20 20 20 Final Carried 9 | 4 5 6 9 4 5 7 Class Distribution -------------------- 78% | Mutant 21% | Scavenger-Mutant Dominant Class ---------------- Mutant | -10/Materials Mutant | -10/Mines Mutant | -9/Materials Mutant | -9/Mines Scavenger-Mutant | -9/Exiles Scavenger-Mutant | -8/Mines Resources | -11 -10 -10 -9 -9 -9 -8 ----------- Run | Yrd Mat Min Mat Min Exi Min Matter Collected 575 | 246 . 22 102 156 . 49 Remotely 82 | . . . 82 . . . Salvage Created 720 | 20 . . 293 256 . 151 Parts 43 | 2 . . 19 14 . 8 Haulers Intercepted . | . . . . . . . Recyclers Shooed . | . . . . . . . Parts Field Recycled . | . . . . . . . Retrieved Matter . | . . . . . . . Parts Self-Destructed . | . . . . . . . Prevented . | . . . . . . . Kills | -11 -10 -10 -9 -9 -9 -8 ------- Run | Yrd Mat Min Mat Min Exi Min Combat Hostiles Destroyed 12 | . . . 5 4 . 3 Guns 7 | . . . 5 2 . . Cannons 5 | . . . . 2 . 3 Classes Destroyed 10 | 1 . . 4 3 . 2 Worker 3 | . . . . 3 . . Tunneler 2 | 1 . . . 1 . . Recycler 3 | . . . 2 1 . . Watcher 1 | . . . 1 . . . Swarmer 3 | . . . 3 . . . Grunt 3 | . . . . 2 . 1 Brawler 1 | . . . . . . 1 Sentry 2 | . . . 2 . . . Demolisher 2 | . . . . 2 . . Hunter 1 | . . . . . . 1 Best Kill Streak 4 | 1 . . 3 4 . 2 Combat Bots Only 3 | . . . 3 2 . 2 Max Kills in Single Turn 2 | 1 . . 1 2 . 1 Gunslinging . | . . . . . . . Exploded . | . . . . . . . Melee . | . . . . . . . Uniques/NPCs Destroyed . | . . . . . . . Combat | -11 -10 -10 -9 -9 -9 -8 -------- Run | Yrd Mat Min Mat Min Exi Min Hostile Shots Fired 90 | . . . 27 27 . 36 Missed 17 | . . . 5 3 . 9 Hits 73 | . . . 22 24 . 27 Projectile 73 | . . . 22 24 . 27 AOE 18 | . . . . 18 . . Critical Strikes 5 | . . . 1 1 . 3 Damage Taken 1764 | . . . 237 1078 . 449 Core 412 | . . . 17 278 . 117 Absorbed by Shields . | . . . . . . . Core Remaining (%) 100 | 100 . 100 . . . . Volleys Fired 60 | 1 . . 15 27 . 17 Largest 2 | 2 . . 2 2 . 2 Hottest 156 | 60 . . 105 156 . 96 Shots Fired 100 | 2 . . 30 50 . 18 Gun 70 | 2 . . 30 37 . 1 Cannon 27 | . . . . 10 . 17 Launcher . | . . . . . . . Special 3 | . . . . 3 . . Kinetic 15 | 1 . . 14 . . . Thermal 36 | . . . 1 19 . 16 Explosive . | . . . . . . . Electromagnetic 49 | 1 . . 15 31 . 2 Robot Hit Streak 8 | 1 . . 7 8 . 4 Robot Miss Streak 3 | . . . 3 3 . 3 Penetration Max . | . . . . . . . Secondary Targets . | . . . . . . . Shots Hit Robots 62 | 1 . . 18 33 . 10 Core Hits 27 | 1 . . 8 13 . 5 Critical Kills . | . . . . . . . Critical Parts Destroyed . | . . . . . . . Critical Strikes 2 | . . . . 2 . . Burn 2 | . . . . 2 . . Melee Attacks . | . . . . . . . Impact . | . . . . . . . Slashing . | . . . . . . . Piercing . | . . . . . . . Sneak Attacks . | . . . . . . . Combat Hostiles . | . . . . . . . Follow-up Attacks . | . . . . . . . Damage Inflicted 1159 | 13 . 5 240 669 . 232 Guns 586 | 13 . . 229 344 . . Cannons 400 | . . . . 174 . 226 Explosions 127 | . . . . 127 . . Melee . | . . . . . . . Ramming 22 | . . 5 11 . . 6 Kinetic 105 | 13 . . 92 . . . Thermal 545 | . . . 18 323 . 204 Explosive . | . . . . . . . Electromagnetic 487 | . . . 119 346 . 22 Impact . | . . . . . . . Slashing . | . . . . . . . Piercing . | . . . . . . . Highest Corruption 12 | . . . . 10 10 12 Average Corruption 10 | . . . . 10 10 10 Corruption Purged . | . . . . . . . Corruption Blocked . | . . . . . . . Effects 30 | . . . . 5 8 17 Message Errors 5 | . . . . . 1 4 Matter Fused 4 | . . . . . . 4 Heat Flow Errors 8 | . . . . 2 3 3 Energy Discharges 6 | . . . . 2 2 2 Parts Fused 4 | . . . . . 1 3 Data Loss (major) 1 | . . . . . 1 . Alerts 2 | . . . . 1 . 1 Overload Shots . | . . . . . . . Overflow Damage . | . . . . . . . Projectiles . | . . . . . . . Explosions . | . . . . . . . Melee . | . . . . . . . Knockbacks 2 | . . 1 . . . 1 Impact 2 | . . 1 . . . 1 Kinetic . | . . . . . . . Secondary . | . . . . . . . Self-Inflicted Damage 3 | . . . . . . 3 Shots . | . . . . . . . Rammed 3 | . . 1 1 . . 1 Targets Rammed 5 | . . 1 3 . . 1 Kicked . | . . . . . . . Crushed 2 | . . . 2 . . . Highest Temperature 387 | . . . 24 226 182 387 Average Temperature 88 | . . . 18 46 80 169 Received Heat Transfer 384 | . . . 63 69 . 252 Effects 1 | . . . . . . 1 Damage (minor) 1 | . . . . . . 1 Siege Activations . | . . . . . . . Martial Activations . | . . . . . . . Shielding Activations . | . . . . . . . Robots Disrupted . | . . . . . . . Combat Hostiles . | . . . . . . . Robots Corrupted . | . . . . . . . Combat Hostiles . | . . . . . . . Parts Fried . | . . . . . . . Impact Corruptions . | . . . . . . . Robots Melted . | . . . . . . . Combat Hostiles . | . . . . . . . Parts Melted 2 | . . . . 2 . . Heat Transferred 1262 | . . . 37 855 . 370 Parts Sabotaged . | . . . . . . . Parts Stolen . | . . . . . . . Parts Stripped . | . . . . . . . Power Chain Reactions 2 | . . . . 2 . . Alert | -11 -10 -10 -9 -9 -9 -8 ------- Run | Yrd Mat Min Mat Min Exi Min Maximum Alert Level . | . . . . . . . Low Security (%) 100 | 100 100 100 100 100 . 100 Level 1 . | . . . . . . . Level 2 . | . . . . . . . Level 3 . | . . . . . . . Level 4 . | . . . . . . . Level 5 . | . . . . . . . High Security . | . . . . . . . Max Security . | . . . . . . . Peak Influence 70 | 5 . . 70 66 . 50 Initial 3 | . . . . 3 . . Average 8 | . . . 22 8 . 4 Influence Increases 365 | 5 . . 147 133 . 80 Destroy 0b10 Robot/C 240 | . . . 100 80 . 60 Destroy 0b10 Robot/NC 45 | 5 . . 15 25 . . Destroy Leader 72 | . . . 32 20 . 20 Destroy Structure 8 | . . . . 8 . . Influence Decreases 363 | 5 . . 138 142 . 78 Entered New Map 6 | . . . . 6 . . Time Decay 317 | 5 . . 138 136 . 38 Lost Part 40 | . . . . . . 40 Squads Dispatched 1 | . . . 1 . . . Investigation 1 | . . . 1 . . . Extermination . | . . . . . . . Reinforcement . | . . . . . . . Assault . | . . . . . . . Garrison . | . . . . . . . Intercept . | . . . . . . . Searches Triggered . | . . . . . . . Construction Impeded . | . . . . . . . Haulers Reinforced . | . . . . . . . Active Scanning Responses . | . . . . . . . Cargo Convoy Interrupts . | . . . . . . . Stealth | -11 -10 -10 -9 -9 -9 -8 --------- Run | Yrd Mat Min Mat Min Exi Min Distress Signals . | . . . . . . . Communications Jammed . | . . . . . . . Distress Signals . | . . . . . . . Times Spotted 20 | . 2 . 7 4 . 7 Peak Tracking Total 5 | . 2 . 4 2 . 5 Tactical Retreats . | . . . . . . . Traps | -11 -10 -10 -9 -9 -9 -8 ------- Run | Yrd Mat Min Mat Min Exi Min Traps Triggered 1 | . . . 1 . . . Indirectly . | . . . . . . . Trap Hack Attempts . | . . . . . . . Triggered . | . . . . . . . Disarmed . | . . . . . . . Reprogrammed . | . . . . . . . Reused . | . . . . . . . Traps Extracted . | . . . . . . . Installed . | . . . . . . . Triggered . | . . . . . . . Machines | -11 -10 -10 -9 -9 -9 -8 ---------- Run | Yrd Mat Min Mat Min Exi Min Machines Disabled . | . . . . . . . Max in Single Turn . | . . . . . . . Machines Repaired . | . . . . . . . Machines Dismantled . | . . . . . . . Machines Sabotaged . | . . . . . . . Overloaded Fab Kills . | . . . . . . . Hacking | -11 -10 -10 -9 -9 -9 -8 --------- Run | Yrd Mat Min Mat Min Exi Min Machines Accessed 3 | . . . . . 3 . Terminals . | . . . . . . . Fabricators . | . . . . . . . Repair Stations . | . . . . . . . Recycling Units . | . . . . . . . Scanalyzers . | . . . . . . . Garrison Access . | . . . . . . . Total Hacks 13 | . . . . . 13 . Successful 13 | . . . . . 13 . Failed . | . . . . . . . Catastrophic . | . . . . . . . Database Lockouts . | . . . . . . . Manual 1 | . . . . . 1 . Terminals . | . . . . . . . Fabricators . | . . . . . . . Repair Stations . | . . . . . . . Recycling Units . | . . . . . . . Scanalyzers . | . . . . . . . Garrison Access . | . . . . . . . Terminal Hacks 13 | . . . . . 13 . Record 12 | . . . . . 12 . Proto ID Catalog 1 | . . . . . 1 . Fabricator Hacks . | . . . . . . . Repair Station Hacks . | . . . . . . . Recycling Unit Hacks . | . . . . . . . Scanalyzer . | . . . . . . . Garrison Access Hacks . | . . . . . . . Unauthorized Hacks . | . . . . . . . Terminals . | . . . . . . . Fabricators . | . . . . . . . Repair Stations . | . . . . . . . Recycling Units . | . . . . . . . Scanalyzers . | . . . . . . . Garrison Access . | . . . . . . . Data Cores Recovered . | . . . . . . . Used . | . . . . . . . Hacking Detections . | . . . . . . . Full Trace Events . | . . . . . . . Feedback Events . | . . . . . . . Feedback Blocked . | . . . . . . . Robot Schematics Acquired . | . . . . . . . Robots Built . | . . . . . . . Authchips . | . . . . . . . Time . | . . . . . . . Total Robot Build Rating . | . . . . . . . Part Schematics Acquired . | . . . . . . . Parts Built . | . . . . . . . Authchips . | . . . . . . . Time . | . . . . . . . Total Part Build Rating . | . . . . . . . Parts Repaired . | . . . . . . . Time . | . . . . . . . Parts Recycled . | . . . . . . . Recycled Matter . | . . . . . . . Retrieved Matter . | . . . . . . . Retrieved Components . | . . . . . . . Parts Scanalyzed . | . . . . . . . Part Schematics Acquired . | . . . . . . . Parts Damaged . | . . . . . . . Bothacking | -11 -10 -10 -9 -9 -9 -8 ------------ Run | Yrd Mat Min Mat Min Exi Min Used RIF Installer . | . . . . . . . Robots Hacked . | . . . . . . . Non-combat . | . . . . . . . Combat . | . . . . . . . Robot Hacks Applied . | . . . . . . . Relay Couplers Released . | . . . . . . . Fabnet Peak Effective % . | . . . . . . . Robots Rewired . | . . . . . . . Allies Hacked . | . . . . . . . Hacks Repelled . | . . . . . . . Allies | -11 -10 -10 -9 -9 -9 -8 -------- Run | Yrd Mat Min Mat Min Exi Min Total Allies . | . . . . . . . Largest Group . | . . . . . . . Highest-Rated Group . | . . . . . . . Highest-Rated Ally . | . . . . . . . Total Orders . | . . . . . . . Ally Attacks . | . . . . . . . Total Damage . | . . . . . . . Kills . | . . . . . . . Allies Corrupted . | . . . . . . . Allies Melted . | . . . . . . . Intel | -11 -10 -10 -9 -9 -9 -8 ------- Run | Yrd Mat Min Mat Min Exi Min Active Infowar (turns) 1602 | 27 109 240 212 660 261 93 Sensors 827 | . . . . 473 261 93 Terrain 775 | 27 109 240 212 187 . . Robot Analysis Total . | . . . . . . . Derelict Logs Recovered 2 | . . 1 . 1 . . Drone Launches . | . . . . . . . Drone Recoveries . | . . . . . . . Exploration | -11 -10 -10 -9 -9 -9 -8 ------------- Run | Yrd Mat Min Mat Min Exi Min Turns Passed 2553 | 78 109 240 405 962 261 498 Spaces Moved 1747 | 40 68 149 202 714 236 338 Core 3 | 2 . . . 1 . . Treads 456 | 38 68 149 201 . . . Legs 2 | . . . . . . 2 Wheels 1286 | . . . 1 713 236 336 Hover . | . . . . . . . Flight . | . . . . . . . Fastest Speed 50 | 50 160 160 120 105 110 110 Average Speed 126 | 154 160 160 164 118 110 110 Slowest Speed 850 | 160 160 160 240 850 110 190 Overloaded Moves . | . . . . . . . Propulsion Burnouts . | . . . . . . . Robots Hopped . | . . . . . . . Potential Cave-ins 3 | . . . . 3 . . Cave-ins Triggered 1 | . . . . 1 . . Exploration Rate (%) 42 | 4 25 48 24 100 61 34 Regions Visited 6 Branch Regions 4 Pre-discovered Areas 2 | . . 1 . . 1 . Known Exits Taken . | . . . . . . . Unknown Exits Taken 6 | 1 1 1 1 1 1 . Scrap Searched 3 | . . 1 . 1 . 1 Spaces Dug 1 | . . . . 1 . . Terrain Destroyed 8 | . . . . 8 . . Melee . | . . . . . . . Projectile 2 | . . . . 2 . . AOE 6 | . . . . 6 . . Terrain Rammed . | . . . . . . . Walls Destroyed . | . . . . . . . Machines Disabled . | . . . . . . . Actions | -11 -10 -10 -9 -9 -9 -8 --------- Run | Yrd Mat Min Mat Min Exi Min Total 1965 | 51 68 150 239 775 237 445 Wait 90 | . . . . 10 . 80 Move 1740 | 39 67 148 201 712 235 338 Hop . | . . . . . . . Pick Up 21 | 4 1 1 4 6 . 5 Fast Attach 19 | 7 . . 7 4 1 . Attach 12 | . . . . 9 . 3 Detach 2 | . . . . 1 1 . Swap 6 | . . . 3 2 . 1 Drop 9 | . . . 6 3 . . Fire 60 | 1 . . 15 27 . 17 Melee . | . . . . . . . Ram 1 | . . . . . . 1 Kick . | . . . . . . . Crush 4 | . . 1 3 . . . Escape Stasis 1 | . . . . 1 . . Rewire . | . . . . . . . Trap . | . . . . . . . Miscellaneous . | . . . . . . . Route ------- -11/Scrapyard -10/Materials -10/Mines -9/Materials -9/Mines (discovered 4 exits: [*Mat x2] / *Exi / [*Zio]) -9/Exiles -8/Mines History --------- Turn | Location | Event 10 | -11/Scrapyard | Discovered new exit (range 15) 79 | -11/Scrapyard | Entered Materials 156 | -10/Materials | Discovered new exit (range 14) 188 | -10/Materials | Entered Mines 262 | -10/Mines | Learned 2 Materials zone layouts 308 | -10/Mines | Build established: Mutant 410 | -10/Mines | Discovered new exit (range 12) 414 | -10/Mines | Learned location of Storage (-7) 428 | -10/Mines | Entered Materials 428 | -9/Materials | Evolved 2 slots: Utility x2 765 | -9/Materials | Discovered new exit (range 13) 833 | -9/Materials | Entered Mines 882 | -9/Mines | Found DCF Scrap (12 items) 885 | -9/Mines | Met a Derelict bent on vengeance 898 | -9/Mines | A Derelict revealed a hidden shortcut to a safe place 904 | -9/Mines | Assembled infested the area 909 | -9/Mines | Assisted by a Guerilla fighting off Assembled 945 | -9/Mines | Learned Materials trap positions 986 | -9/Mines | Discovered new exit (range 15) 1140 | -9/Mines | Found a damaged Exp. Sensor Array with a note attached 1142 | -9/Mines | Found Prototype Device 1174 | -9/Mines | Discovered new exit (range 3) 1295 | -9/Mines | Core integrity fell below 50% 1322 | -9/Mines | Identified Exp. Sensor Array 1326 | -9/Mines | Lost 9 parts (2p3n2u2w) 1674 | -9/Mines | Crushed by falling debris 1675 | -9/Mines | System corruption reached 10% 1705 | -9/Mines | Lost 3 parts (1p2n) 1789 | -9/Mines | Deemed a non-threat by the Exiles lab entrance 1790 | -9/Mines | Discovered new exit (range 5) 1795 | -9/Mines | Entered Exiles 1822 | -9/Exiles | Met 8R-AWN 1841 | -9/Exiles | Met EX-HEX 1878 | -9/Exiles | Met EX-BIN 1891 | -9/Exiles | Aligned with FarCom system 1892 | -9/Exiles | Given EX-Vault access code 1918 | -9/Exiles | Opened EX-Vault 1927 | -9/Exiles | Found Superbattery 1968 | -9/Exiles | Warned to stay clear of 0b10 Research branches 2000 | -9/Exiles | Met EX-DEC 2013 | -9/Exiles | Learned location of Zion (-7) 2045 | -9/Exiles | Discovered new exit (range 12) 2056 | -9/Exiles | Left Exiles lab with Superbattery 2056 | -9/Exiles | Entered Mines 2455 | -8/Mines | Build established: Scavenger-Mutant 2524 | -8/Mines | Core integrity fell below 20% 2554 | -8/Mines | Destroyed by G-50 Soldier with Heavy Laser Last Messages --------------- 02522_ G-47 Trooper destroyed. 02523_ Wheel destroyed. 02525_ R-06 Scavenger collects Lgt. Armor Plating. 02529_ R-06 Scavenger collects Lgt. Treads. 02530_ Critical hit (Burn: +37). 02532_ R-06 Scavenger collects Lgt. Nuclear Core. 02533_ Wheel destroyed. 02534_ Integrated Corrupted Carbon-fiber Leg (+2). 02534_ R-06 Scavenger collects Aluminum Leg. 02535_ Critical hit (Burn: +37). 02547_ K-01 Serf collects debris. 02547_ Critical hit (Burn: +37). 02550_ Lgt. Armor Plating destroyed. 02552_ K-01 Serf collects debris. 02552_ Lgt. Ion Engine destroyed. 02553_ Overheating: Adv. Beam Cannon damaged (-97). Map ----- +----------------------------------------------------+ | ?????????????????????????????????????????????? | | ?????????????????????????????????????????????? | | ?????????????????????????????????????????????? | | ?????????????????????????????????????????????? | | ?????????????????????????????????????????????? | | ?????????????????????????????????????????????? | | ?????????????????????????????????????????????? | | ?????????????????????????????????????????????? | | ?????????????????????????????????????????????? | | ?????????????????????????????????????????????? | | ?????????????????????????????????????????????? | | ?????????????????????????????????????????????? | | ?????????????????C???????????????????????????? | | ?????????????????????????????????????????????? | | ?????????????????????????????????????????????? | | ??????????####???????????????????????????????? | | ?????????## ##??????????????????????????????? | | ?????????# ####???????????????????????????? | | ?????????# ##??????????????????????????? | | ??????????# #????????????????#?????????? | | ??????????### #???????????? ##????????? | | ????????????## ########## #????????? | | ?????????????## ## g =%! ???????? | | ??????????????# ## g *#???????????? | | ?????????????## ##gg###### #????????????? | | ?????????????# ## @#??????????????????????? | | ?????????????# ## #??????????????????????? | | ?????????????## ## #??????????????????????? | | ?????????????## # ##?????????????????????? | | ????????????## ##????????????????????? | | ????????????# #????????????????????? | | ????????????# ##???????????????????? | | ????????????## #???????????????????? | | ?????????????### u #???????????????????? | | ????##?????????# #???????????????????? | | ???## ####?????#k #???????????????????? | | ???# ####?## t ##??????????????????? | | ???# + ### #??????????????????? | | ???# + ### #??????????####????? | | ???# # #????????### ##???? | | ???####### """" ##???????## #???? | | ?????????# """" #????????# #???? | | ?????????# ### """" #????????# ##???? | | ?????????#####?# #????????## ##???? | | ???????????????# # ##????????## ##??? | | ???????????????# ## ##????????## ##?? | | ???????????????# ### ########??## ### | | ?????#####?????# #?###### ## ##?## % | | ????## ####### #??????## ### | | ???## #???????## ### | +----------------------------------------------------+ Best States ------------- Heat Dissipation 38 Energy Generation 12 Energy Capacity 1625 Matter Stores 300 Matter Capacity 300 Sight Range 16 Robot Scan Range 20 Terrain Scan Range 16 Terrain Scan Density 10 Armor Coverage 150 Propulsion Shielding 33 Evasion (%) 40 Targeting Accuracy 6 Recoil Reduction 2 Item Schematics ----------------- None Robot Schematics ------------------ None Fabricated ------------ Nothing Repaired ---------- Nothing Alien Tech Used ----------------- None Achievements -------------- None Challenges ------------ None Game ------ Seed RegenerativeIonSpear Manual? 0 Play Time 00:15:54 Cumulative 105.4 hours Start 2025.06.01 @ 15:36:00 End 2025.06.01 @ 15:49:15 Sessions 1 Manual Loads 0 Difficulty Rogue Special Mode None Game No. 205 Rogue 205 Adventurer 0 Explorer 0 Win Type - Total 0 Types 0/0/0/0/0/0/0/0/0/0 Lore% 26 Gallery% 44 Achievement% 34 Wizard Run 0 Options --------- Layout 1 ASCII 0 Keyboard 1 Movement Arrows Keybinds 0 Fullscreen 2 Font 24/Smallcaps Map View 50x35 Zoom Use 0% Tactical HUD 1 Map Filters NONE Filters NONE Steam 1 RUN: 82e57e59-d24e-4c15-aebf-d5af03bde7c0